bitfinex/quotes_BTCUSD_20260104
["timestamp","ask_amount","ask_price","bid_price","bid_amount"]
[1767490875812,0.06636798,91063.0,91057.0,0.01098213]
[1767490875813,0.01098164,91061.0,91057.0,0.01098213]
[1767490875995,0.01098177,91060.0,91057.0,0.01098213]
[1767490876352,0.01098177,91060.0,91055.0,0.05491186]
[1767490877117,0.01098177,91060.0,91057.0,0.01098213]
[1767490878123,0.0108937,91060.0,91057.0,0.01098213]
[1767490878725,0.0562803,91060.0,91055.0,0.01589411]
[1767490878942,0.0108937,91060.0,91052.0,0.03226161]
[1767490879262,0.0108937,91060.0,91053.0,0.04739164]
[1767490879521,0.0108937,91060.0,91052.0,0.03231292]
[1767490879674,0.0108937,91060.0,91055.0,0.05491186]
[1767490879868,0.0108937,91060.0,91056.0,0.01098225]
[1767490881523,0.01098189,91059.0,91056.0,0.01098225]
[1767490881728,0.0108937,91060.0,91055.0,0.01098237]
[1767490882111,0.01080353,91060.0,91056.0,0.01098225]
[1767490882849,0.01098201,91058.0,91052.0,0.0659475]
[1767490883049,0.00999998,91056.0,91054.0,0.05491246]
[1767490883394,0.0109125,91061.0,91057.0,0.01098213]
[1767490883823,0.01082232,91061.0,91057.0,0.01098213]
[1767490884419,0.01073425,91061.0,91058.0,0.01098201]
[1767490884615,0.01098092,91067.0,91059.0,0.01098189]
[1767490884842,0.03298128,91064.0,91061.0,0.01098164]
[1767490885856,0.03298128,91064.0,91060.0,0.01098177]
[1767490886147,0.03298128,91064.0,91061.0,0.04739164]
[1767490886387,0.022,91064.0,91061.0,0.01098164]
[1767490887342,0.022,91064.0,91061.0,0.05837328]
[1767490887979,0.03289319,91064.0,91061.0,0.05837328]
[1767490888179,0.03200643,91064.0,91061.0,0.01098164]
[1767490889460,0.03200643,91064.0,91061.0,0.05837328]
[1767490889678,0.03200643,91064.0,91061.0,0.01098164]
[1767490893077,0.03191834,91064.0,91061.0,0.01098164]
[1767490893987,0.03191834,91064.0,91061.0,0.05792651]
[1767490894832,0.0318492,91064.0,91061.0,0.05792651]
[1767490895892,0.0318492,91064.0,91061.0,0.01098164]
[1767490896338,0.0318492,91064.0,91062.0,0.04694487]
[1767490896541,0.0318492,91064.0,91061.0,0.01098164]
[1767490899968,0.02086792,91064.0,91061.0,0.0658895]
[1767490900177,0.04392415,91066.0,91064.0,0.01098128]
[1767490900320,0.0109802,91073.0,91071.0,0.04694487]
[1767490900503,0.0109802,91073.0,91070.0,0.01098056]
[1767490900504,0.01097996,91075.0,91072.0,0.05792519]
[1767490900704,0.06587759,91078.0,91074.0,0.04694487]
[1767490900959,0.05489679,91080.0,91074.0,0.05792495]
[1767490901157,0.022,91079.0,91074.0,0.05792495]
[1767490901981,0.022,91079.0,91075.0,0.01097996]
[1767490902187,0.03297947,91079.0,91071.0,0.01098044]
[1767490902481,0.00999998,91075.0,91072.0,0.01098032]
[1767490903264,0.00999998,91075.0,91072.0,0.06588193]
[1767490903588,0.02097994,91075.0,91068.0,0.0109808]
[1767490903734,0.01098032,91072.0,91069.0,0.01098068]
[1767490904370,0.01098032,91072.0,91068.0,0.06588478]
[1767490904371,0.06588235,91072.0,91068.0,0.0109808]
[1767490904908,0.01098032,91072.0,91069.0,0.01098068]
[1767490906170,0.0109802,91073.0,91070.0,0.01098056]
[1767490909642,0.0109802,91073.0,91069.0,0.01098068]
[1767490910315,0.00999998,91069.0,91066.0,0.01098104]
[1767490910514,0.00999998,91069.0,91066.0,0.06588582]
[1767490910946,0.01098056,91070.0,91066.0,0.06588582]
[1767490911478,0.01098032,91072.0,91070.0,0.000999]
[1767490911682,0.01098032,91072.0,91069.0,0.01098068]
[1767490912085,0.01098032,91072.0,91068.0,0.0109808]
[1767490913453,0.01098044,91071.0,91068.0,0.0109808]
[1767490913851,0.00998144,91071.0,91068.0,0.0109808]
[1767490914069,0.01098032,91072.0,91069.0,0.01098068]
[1767490915155,0.01098032,91072.0,91069.0,0.00795652]
[1767490916784,0.01098044,91071.0,91068.0,0.0109808]
[1767490917740,0.06588308,91071.0,91067.0,0.01098092]
[1767490917959,0.01098104,91066.0,91062.0,0.05490706]
[1767490918076,0.01099898,91067.0,91063.0,0.06588801]
[1767490918272,0.04886868,91065.0,91061.0,0.01098164]
[1767490918493,0.01098116,91065.0,91062.0,0.01098152]
[1767490918980,0.11476301,91055.0,91045.0,0.21967036]
[1767490919181,0.01099898,91062.0,91052.0,0.01103404]
[1767490919182,0.05491054,91058.0,91052.0,0.01103404]
[1767490919385,0.05491121,91057.0,91052.0,0.01103404]
[1767490919842,0.01098237,91055.0,91052.0,5.131e-05]
[1767490920206,0.06589437,91055.0,91052.0,5.131e-05]
[1767490920798,0.06589437,91055.0,91052.0,3.1e-07]
[1767490921113,0.06589437,91055.0,91046.0,0.10219715]
[1767490921114,0.00999998,91050.0,91045.0,0.04727993]
[1767490921500,0.00999998,91050.0,91045.0,0.04738771]
[1767490921663,0.06491495,91050.0,91045.0,0.11328886]
[1767490921866,0.07589792,91050.0,91046.0,0.01098345]
[1767490922046,0.01098309,91049.0,91046.0,0.01098345]
[1767490922226,0.01093209,91049.0,91046.0,0.01098345]
[1767490922919,0.01093209,91049.0,91045.0,0.01109135]
[1767490923173,0.01098321,91048.0,91045.0,0.01109135]
[1767490923395,0.01098321,91048.0,91041.0,0.00023236]
[1767490923396,0.01198257,91045.0,91041.0,0.00023236]
[1767490923525,0.0109837,91044.0,91042.0,0.04727993]
[1767490923726,0.06590268,91044.0,91042.0,0.04727993]
[1767490924056,0.01590268,91044.0,91041.0,0.00023236]
[1767490924260,0.06590153,91045.0,91041.0,0.00023236]
[1767490924977,0.06590272,91044.0,91041.0,0.00023236]
[1767490925938,0.01098345,91046.0,91042.0,0.01098394]
[1767490927369,0.01098357,91045.0,91042.0,0.01098394]
[1767490928092,0.0109837,91044.0,91041.0,0.00023236]
[1767490928252,0.0109837,91044.0,91041.0,0.01121642]
[1767490928657,0.01098345,91046.0,91042.0,0.11318357]
[1767490928891,0.01098345,91046.0,91042.0,0.06590364]
[1767490929096,0.01098321,91048.0,91043.0,0.01098382]
[1767490929311,0.01099898,91043.0,91039.0,0.022]
[1767490929449,0.0209838,91043.0,91039.0,0.0329843]
[1767490929648,0.0209838,91043.0,91040.0,0.01098418]
[1767490929848,0.01098382,91043.0,91040.0,0.01098418]
[1767490930297,0.0109837,91044.0,91040.0,0.01093908]
[1767490930699,0.0109837,91044.0,91041.0,0.01098406]
[1767490931954,0.01098357,91045.0,91041.0,0.01098406]
[1767490933931,0.01098345,91046.0,91041.0,0.06590382]
[1767490934270,0.01098345,91046.0,91041.0,0.06561857]
[1767490935337,0.01098357,91045.0,91041.0,0.06561857]
[1767490935513,0.01098345,91046.0,91042.0,0.01098394]
[1767490935721,0.01098333,91047.0,91043.0,0.06590281]
[1767490936189,0.01098333,91047.0,91042.0,0.0659031]
[1767490936631,0.01098357,91045.0,91041.0,0.06561857]
[1767490937979,0.01098357,91045.0,91034.0,0.000152]
[1767490937980,0.01098454,91037.0,91034.0,0.000152]
[1767490938158,0.01098406,91041.0,91037.0,0.01098454]
[1767490938478,0.01098394,91042.0,91039.0,0.0109843]
[1767490938801,0.01098406,91041.0,91037.0,0.01098454]
[1767490939207,0.01098418,91040.0,91036.0,0.01098466]
[1767490939774,0.0109843,91039.0,91035.0,0.01098478]
[1767490939948,0.01098442,91038.0,91035.0,0.01098478]
[1767490941090,0.01098418,91040.0,91038.0,0.01]
[1767490941418,0.01098418,91040.0,91036.0,0.06590798]
[1767490941850,0.0591214,91040.0,91037.0,0.01098454]
[1767490942187,0.01098418,91040.0,91037.0,0.01098454]
[1767490942386,0.0109843,91039.0,91036.0,0.01098466]
[1767490944173,0.01098418,91040.0,91037.0,0.01098454]
[1767490946666,0.01098406,91041.0,91038.0,0.01098442]
[1767490946867,0.01098406,91041.0,91038.0,0.01093933]
[1767490947072,0.01098394,91042.0,91038.0,0.01093933]
[1767490948529,0.05912116,91042.0,91038.0,0.01093933]
[1767490948724,0.000999,91038.0,91035.0,0.01098478]
[1767490948954,0.04813722,91035.0,91018.0,0.04727993]
[1767490949177,0.04813722,91035.0,91026.0,0.01098587]
[1767490949178,0.01098538,91030.0,91026.0,0.01098587]
[1767490949966,0.01098563,91028.0,91025.0,0.01098599]
[1767490950170,0.01098538,91030.0,91026.0,0.01098587]
[1767490950367,0.01098538,91030.0,91026.0,0.06591521]
[1767490951229,0.01098551,91029.0,91026.0,0.01098587]
[1767490951589,0.01098538,91030.0,91027.0,0.0659145]
[1767490951805,0.01098526,91031.0,91028.0,0.01098563]
[1767490952498,0.01198463,91028.0,91025.0,0.01098599]
[1767490952862,0.06591232,91030.0,91027.0,0.01098575]
[1767490952863,0.01098538,91030.0,91027.0,0.01098575]
[1767490954138,0.01098538,91030.0,91026.0,0.01098587]
[1767490954328,0.05958832,91030.0,91025.0,0.01098599]
[1767490955026,0.05958832,91030.0,91027.0,0.01098575]
[1767490955224,0.04860294,91030.0,91027.0,0.06591395]
[1767490955455,0.022,91031.0,91028.0,0.01098563]
[1767490955636,0.022,91031.0,91028.0,0.00998663]
[1767490955846,0.07060294,91031.0,91028.0,0.00998663]
[1767490956223,0.03298526,91031.0,91027.0,0.01098575]
[1767490956796,0.03298526,91031.0,91028.0,0.01098563]
[1767490957126,0.03198626,91031.0,91028.0,0.01098563]
[1767490958462,0.03198626,91031.0,91027.0,0.06591409]
[1767490958649,0.04860294,91030.0,91027.0,0.01098575]
[1767490958848,0.01098538,91030.0,91027.0,0.01098575]
[1767490959089,0.03198626,91031.0,91027.0,0.01098575]
[1767490959668,0.01098538,91030.0,91027.0,0.01098575]
[1767490960261,0.06591306,91029.0,91025.0,0.01098599]
[1767490961008,0.01098563,91028.0,91025.0,0.01098599]
[1767490961484,0.01098563,91028.0,91023.0,0.06591716]
[1767490961834,0.01098647,91021.0,91017.0,0.05493463]
[1767490962002,0.01109407,91021.0,91015.0,0.05508788]
[1767490962185,0.01098671,91019.0,91016.0,0.01098707]
[1767490962385,0.01098671,91019.0,91015.0,0.000152]
[1767490962386,0.05493479,91017.0,91015.0,0.000152]
[1767490962701,0.01098683,91018.0,91014.0,0.01098732]
[1767490963218,0.01098671,91019.0,91015.0,0.06592318]
[1767490963624,0.01098671,91019.0,91015.0,0.01098719]
[1767490964027,0.01098659,91020.0,91016.0,0.01098707]
[1767490964590,0.01089207,91016.0,91014.0,0.01098732]
[1767490964912,0.01004507,91016.0,91014.0,0.06587993]
[1767490965109,0.0001076,91021.0,91018.0,0.01098683]
[1767490965311,0.06602696,91021.0,91017.0,0.01098695]
[1767490965892,0.01109407,91021.0,91017.0,0.01098695]
[1767490966643,0.000847,91017.0,91015.0,0.01098719]
[1767490966823,0.01109407,91021.0,91017.0,0.01098695]
[1767490967343,0.01098659,91020.0,91017.0,0.01098695]
[1767490967751,0.01098659,91020.0,91015.0,0.01098719]
[1767490967953,0.01089207,91017.0,91013.0,0.01098744]
[1767490968185,0.01089207,91017.0,91015.0,0.05493599]
[1767490968327,0.01004507,91017.0,91015.0,0.05493599]
[1767490968531,0.01098671,91019.0,91015.0,0.06592318]
[1767490969255,0.11084216,91020.0,91016.0,0.01098707]
[1767490970033,0.06591988,91020.0,91016.0,0.01098707]
[1767490970345,0.06592088,91019.0,91015.0,0.01098719]
[1767490971836,0.06592157,91018.0,91014.0,0.01098732]
[1767490972041,0.01098671,91019.0,91016.0,0.01098707]
[1767490972243,0.01098671,91019.0,91015.0,0.06592318]
[1767490972465,0.01098695,91017.0,91013.0,0.01098744]
[1767490972672,0.01098683,91018.0,91015.0,0.01098719]
[1767490972868,0.00037619,91016.0,91015.0,0.01098719]
[1767490973255,0.00037619,91016.0,91014.0,0.0549366]
[1767490975910,0.00037619,91016.0,91012.0,0.01098756]
[1767490976285,0.01136326,91016.0,91013.0,0.01098744]
[1767490976838,0.00037619,91016.0,91013.0,0.06492507]
[1767490977034,0.00037619,91016.0,91013.0,0.00998844]
[1767490977386,0.00037619,91016.0,91006.0,0.05888579]
[1767490977387,0.01098768,91011.0,91006.0,0.05888579]
[1767490977598,0.05494022,91008.0,91006.0,0.04789751]
[1767490977858,0.01098804,91008.0,91005.0,4.004e-05]
[1767490978008,0.000999,91006.0,91005.0,4.004e-05]
[1767490978206,0.06592866,91008.0,91005.0,4.004e-05]
[1767490978207,0.01098804,91008.0,91005.0,4.004e-05]
[1767490978842,0.0109878,91010.0,91006.0,0.01098828]
[1767490979207,0.0649271,91011.0,91007.0,0.06592898]
[1767490979435,0.000999,91007.0,91005.0,4.004e-05]
[1767490980153,0.05494124,91007.0,91005.0,4.004e-05]
[1767490980706,0.06592826,91008.0,91005.0,4.004e-05]
[1767490980906,0.05494128,91007.0,91005.0,4e-08]
[1767490981147,0.06592826,91008.0,91005.0,4e-08]
[1767490981557,0.05494137,91007.0,91005.0,4e-08]
[1767490982010,0.06592826,91008.0,90954.0,1.09944634]
[1767490982011,0.06593243,91003.0,91000.0,10.001855]
[1767490982211,0.06593243,91003.0,91000.0,7.79447256]
[1767490982212,0.18627499,91001.0,91000.0,7.79447256]
[1767490982336,0.18627499,91001.0,91000.0,7.44026515]
[1767490982337,0.23119727,91001.0,91000.0,7.44026515]
[1767490982539,0.23119727,91001.0,91000.0,7.2817737]
[1767490982785,0.23119727,91001.0,91000.0,6.42218915]
[1767490983087,0.07694445,91001.0,91000.0,5.73715012]
[1767490983319,0.0167799,91001.0,91000.0,5.6909058]
[1767490983583,0.0167799,91001.0,91000.0,5.69086072]
[1767490983944,0.0167799,91001.0,91000.0,5.68081569]
[1767490984145,0.01355556,91001.0,91000.0,5.68081569]
[1767490984635,0.01355556,91001.0,91000.0,5.67488352]
[1767490985241,0.01355556,91001.0,91000.0,4.45646758]
[1767490985242,0.07694445,91001.0,91000.0,4.45646758]
[1767490985455,0.07694445,91001.0,91000.0,4.02944818]
[1767490985678,0.07694445,91001.0,91000.0,3.86468842]
[1767490985874,0.07694445,91001.0,91000.0,3.55174742]
[1767490986057,0.07694445,91001.0,91000.0,3.4026522]
[1767490986265,0.07694445,91001.0,91000.0,3.23096525]
[1767490986589,0.07694445,91001.0,91000.0,2.93900598]
[1767490986790,0.07694445,91001.0,91000.0,2.69088456]
[1767490986998,0.07694445,91001.0,91000.0,2.51476703]
[1767490987193,0.07694445,91001.0,91000.0,2.19853951]
[1767490987400,0.022,91001.0,91000.0,1.71656825]
[1767490987599,0.07694445,91001.0,91000.0,0.27247998]
[1767490987802,0.05494626,90998.0,90997.0,1e-08]
[1767490988567,0.01098901,91000.0,90997.0,1e-08]
[1767490988748,0.05494565,90999.0,90997.0,1e-08]
[1767490988952,0.01098901,91000.0,90997.0,1e-08]
[1767490989396,0.01098901,91000.0,90987.0,0.01099058]
[1767490989586,0.13133054,90988.0,90987.0,0.01099058]
[1767490989809,0.12133054,90988.0,90987.0,0.01099058]
[1767490989989,0.12133054,90988.0,90986.0,0.0109907]
[1767490990166,0.12133054,90988.0,90985.0,0.01099082]
[1767490990771,0.12143808,90988.0,90985.0,0.01099082]
[1767490991177,0.12143808,90988.0,90984.0,0.01099094]
[1767490991178,0.010999,90985.0,90982.0,0.00097571]
[1767490991395,0.13133054,90983.0,90982.0,0.00097571]
[1767490993265,0.000975,90982.0,90979.0,0.022152]
[1767490993494,0.01196618,90982.0,90979.0,0.01312771]
[1767490993702,0.05495652,90981.0,90979.0,0.01312771]
[1767490993916,0.01196618,90982.0,90979.0,0.01312771]
[1767490994126,0.01099118,90982.0,90979.0,0.01312771]
[1767490994335,0.13133054,90983.0,90979.0,0.01312771]
[1767490994546,0.13035554,90983.0,90979.0,0.01312771]
[1767490995289,0.13035554,90983.0,90979.0,0.05937203]
[1767490996039,0.13035554,90983.0,90980.0,0.022]
[1767490996279,0.00010754,90988.0,90984.0,0.04624432]
[1767490996503,0.08133054,90985.0,90984.0,0.04624432]
[1767490996677,0.08133054,90985.0,90983.0,0.00870739]
[1767490996814,0.08133054,90985.0,90982.0,0.01099118]
[1767490997232,0.08133054,90985.0,90981.0,0.0109913]
[1767490997663,0.08133054,90985.0,90980.0,0.0228232]
[1767490998837,0.08133054,90985.0,90980.0,0.01183178]
[1767490999076,0.08133054,90985.0,90980.0,0.0228232]
[1767490999680,0.08133054,90985.0,90980.0,0.01183178]
[1767491001743,0.08133054,90985.0,90980.0,0.00589859]
[1767491003349,0.04931897,90984.0,90981.0,0.022]
[1767491003553,0.04931897,90984.0,90981.0,0.00511965]
[1767491004178,0.08133054,90985.0,90981.0,0.00511965]
[1767491007009,0.08133054,90985.0,90981.0,0.00412065]
[1767491009859,0.08133054,90985.0,90980.0,0.022]
[1767491011154,0.11016639,90985.0,90980.0,0.022]
[1767491011300,0.08133054,90985.0,90980.0,0.022]
[1767491012488,0.05495154,90990.0,90980.0,0.022]
[1767491012489,0.01098985,90993.0,90985.0,0.00970639]
[1767491012692,0.08133054,90986.0,90985.0,0.04957764]
[1767491012852,0.03124254,90986.0,90985.0,0.00035791]
[1767491013437,0.03115454,90986.0,90985.0,0.00035791]
[1767491013680,0.03115454,90986.0,90984.0,0.01635791]
[1767491013879,0.04784753,90985.0,90984.0,0.01635791]
[1767491014442,0.03115454,90986.0,90984.0,0.01635791]
[1767491016635,0.02352172,90990.0,90984.0,0.01635791]
[1767491016841,0.13133054,90989.0,90985.0,0.01099082]
[1767491017049,0.13133054,90989.0,90986.0,0.0109907]
[1767491017307,0.04784753,90998.0,90989.0,0.01099033]
[1767491017535,0.19726274,91003.0,90993.0,0.01098985]
[1767491017536,0.17917807,91003.0,90993.0,0.01098985]
[1767491017726,0.04784753,91002.0,90994.0,0.03298973]
[1767491017869,0.04784753,91002.0,90994.0,0.022]
[1767491019911,0.04784753,91002.0,90994.0,0.03298973]
[1767491020108,0.13123054,91003.0,90994.0,0.022]
[1767491020795,0.01098876,91002.0,90994.0,0.022]
[1767491020995,0.13123054,91003.0,90995.0,0.01098961]
[1767491021898,0.13123054,91003.0,90994.0,0.03298973]
[1767491022093,0.13123054,91003.0,90995.0,0.01098961]
[1767491023259,0.13123054,91003.0,90994.0,0.022]
[1767491024359,0.13123054,91003.0,90998.0,0.01098925]
[1767491024566,0.05493929,91010.0,90995.0,0.01098961]
[1767491024567,0.13133054,91000.0,90997.0,0.06593568]
[1767491024759,0.13133054,91000.0,90997.0,0.01098937]
[1767491025511,0.01098792,91009.0,90996.0,0.05494747]
[1767491025512,0.13133054,90999.0,90996.0,0.01098949]
[1767491028666,0.000999,90996.0,90992.0,0.01098997]
[1767491028972,0.05884653,90996.0,90993.0,0.022]
[1767491029174,0.04884653,90996.0,90993.0,0.022]
[1767491029471,0.04784753,90996.0,90993.0,0.022]
[1767491029672,0.04784753,90996.0,90988.0,0.29791432]
[1767491029835,0.000999,90988.0,90986.0,0.28692386]
[1767491030064,0.000999,90988.0,90987.0,0.022]
[1767491030436,0.01098961,90995.0,90987.0,0.022]
[1767491030886,0.04784753,90993.0,90988.0,0.012]
[1767491031186,0.04784753,90993.0,90988.0,0.011001]
[1767491031887,0.04784753,90991.0,90980.0,0.29791528]
[1767491032033,0.05883762,90991.0,90981.0,0.022]
[1767491032234,0.05883786,90989.0,90981.0,0.022]
[1767491032439,0.04784753,90989.0,90981.0,0.022]
[1767491033062,0.01099009,90991.0,90981.0,0.022]
[1767491033268,0.01099009,90991.0,90981.0,0.0109913]
[1767491033474,0.01099009,90991.0,90982.0,0.022]
[1767491034715,0.06593971,90993.0,90982.0,0.022]
[1767491034716,0.01098985,90993.0,90982.0,0.022]
[1767491034955,0.01098997,90992.0,90982.0,0.022]
[1767491035119,0.01098985,90993.0,90982.0,0.022]
[1767491035347,0.01098876,91002.0,90993.0,0.000999]
[1767491035483,0.13133054,91001.0,90994.0,0.022]
[1767491036627,0.13133054,91001.0,90992.0,0.13086828]
[1767491036628,0.04784753,90996.0,90992.0,0.13086828]
[1767491036829,0.01098949,90996.0,90992.0,0.022]
[1767491036970,0.01098961,90995.0,90992.0,0.022]
[1767491037175,0.06593778,90995.0,90992.0,0.022]
[1767491037398,0.01098961,90995.0,90992.0,0.022]
[1767491038010,0.06593818,90995.0,90992.0,0.022]
[1767491038428,0.06593818,90995.0,90983.0,0.01099106]
[1767491038429,0.01099009,90991.0,90981.0,0.04392]
[1767491038631,0.13133054,90986.0,90985.0,0.04921973]
[1767491039262,0.01099118,90982.0,90977.0,0.04921973]
[1767491039464,0.01099106,90983.0,90978.0,0.022]
[1767491039613,0.01099106,90983.0,90978.0,0.07121973]
[1767491039812,0.14232124,90986.0,90983.0,0.000999]
[1767491040013,0.13133054,90986.0,90983.0,0.010999]
[1767491040215,0.13133054,90986.0,90978.0,0.07121973]
[1767491040421,0.13133054,90986.0,90979.0,0.04774697]
[1767491040864,0.13033154,90986.0,90979.0,0.04774697]
[1767491041495,0.13033154,90986.0,90982.0,0.04774697]
[1767491043740,0.19044671,91001.0,90978.0,0.03299166]
[1767491043741,0.01098961,90995.0,90984.0,0.04774697]
[1767491043878,0.01098985,90993.0,90986.0,0.01]
[1767491044445,0.01098973,90994.0,90986.0,0.01]
[1767491044782,0.01098937,90997.0,90986.0,0.01]
[1767491045117,0.01098973,90994.0,90986.0,0.01]
[1767491045940,0.01098961,90995.0,90986.0,0.01]
[1767491046153,0.01098973,90994.0,90986.0,0.01]
[1767491046440,0.01098985,90993.0,90986.0,0.01]
[1767491046940,0.01098985,90993.0,90986.0,0.00410873]
[1767491047241,0.01098973,90994.0,90986.0,0.00410873]
[1767491047741,0.01098985,90993.0,90986.0,0.00410873]
[1767491048039,0.01098997,90992.0,90986.0,0.00410873]
[1767491048399,0.01098985,90993.0,90986.0,0.00410873]
[1767491048938,0.13133054,90987.0,90986.0,0.0518557]
[1767491050302,100.000152,91430.0,90986.0,0.0518557]
[1767491050303,0.02938737,91015.0,91002.0,0.05494336]
[1767491050503,0.04768537,91026.0,91011.0,0.04774697]
[1767491050504,0.02354338,91016.0,91011.0,0.04774697]
[1767491050688,0.02925753,91023.0,91017.0,0.01098695]
[1767491050887,0.04037275,91030.0,91016.0,0.0549349]
[1767491050888,0.01113751,91029.0,91018.0,0.022]
[1767491051088,0.000152,91029.0,91022.0,0.01098635]
[1767491051376,0.000152,91029.0,91023.0,0.05493117]
[1767491051550,0.000152,91029.0,91022.0,0.01098635]
[1767491051705,0.00051197,91029.0,91026.0,0.01098587]
[1767491052054,0.00051197,91029.0,91024.0,0.01098611]
[1767491052743,0.00051197,91029.0,91023.0,0.01098623]
[1767491052903,0.00051197,91029.0,91024.0,0.01098611]
[1767491053307,0.00051197,91029.0,91025.0,0.01098599]
[1767491053706,0.00051197,91029.0,91023.0,0.01098623]
[1767491053914,0.00051197,91029.0,91024.0,0.01098611]
[1767491054253,0.00051197,91029.0,91023.0,0.01098623]
[1767491054479,0.00051197,91029.0,91024.0,0.01098611]
[1767491054940,0.04768537,91028.0,91022.0,0.01591761]
[1767491055116,0.00051197,91029.0,91023.0,0.05493058]
[1767491055299,0.00051197,91029.0,91026.0,0.04774697]
[1767491055507,0.00051197,91029.0,91028.0,0.04774697]
[1767491055705,0.02718066,91038.0,91030.0,0.28707165]
[1767491055946,0.02725576,91038.0,91030.0,0.28707165]
[1767491056909,0.01105952,91038.0,91030.0,0.28707165]
[1767491057573,0.01098454,91037.0,91030.0,0.28707165]
[1767491058065,0.01098466,91036.0,91031.0,0.04774697]
[1767491058428,0.01098454,91037.0,91031.0,0.04774697]
[1767491059014,0.01098466,91036.0,91031.0,0.04774697]
[1767491059364,0.01105952,91038.0,91031.0,0.04774697]
[1767491059586,0.01098454,91037.0,91031.0,0.04774697]
[1767491059825,0.01105952,91038.0,91031.0,0.04774697]
[1767491060675,7.51e-05,91038.0,91031.0,0.04774697]
[1767491061091,0.01098454,91037.0,91031.0,0.04774697]
[1767491061299,7.51e-05,91038.0,91031.0,0.04774697]
[1767491061827,7.51e-05,91038.0,91034.0,0.04774697]
[1767491062038,7.51e-05,91038.0,91036.0,0.04774697]
[1767491063433,7.51e-05,91038.0,91035.0,0.022]
[1767491063671,0.01098382,91043.0,91035.0,0.022]
[1767491064134,0.01098394,91042.0,91035.0,0.022]
[1767491064349,0.01098406,91041.0,91035.0,0.022]
[1767491064771,0.01098418,91040.0,91035.0,0.022]
[1767491065004,0.01098406,91041.0,91035.0,0.022]
[1767491065204,0.0109843,91039.0,91035.0,0.021001]
[1767491065411,0.01098406,91041.0,91035.0,0.021001]
[1767491065581,0.01098418,91040.0,91035.0,0.021001]
[1767491065786,0.01098406,91041.0,91035.0,0.021001]
[1767491065984,0.01098406,91041.0,91035.0,0.01510938]
[1767491066598,0.01098418,91040.0,91035.0,0.01510938]
[1767491067194,0.00063301,91047.0,91040.0,0.04874597]
[1767491067576,0.00063301,91047.0,91043.0,0.01098382]
[1767491067774,0.00063301,91047.0,91044.0,0.022]
[1767491068667,0.00063301,91047.0,91044.0,0.021001]
[1767491069218,1e-08,91047.0,91044.0,0.021001]
[1767491070252,1e-08,91047.0,91044.0,0.06717562]
[1767491071488,1e-08,91047.0,91044.0,0.011001]
[1767491072515,0.01098334,91047.0,91044.0,0.011001]
[1767491072903,1e-08,91047.0,91044.0,0.011001]
[1767491073310,0.01098334,91047.0,91044.0,0.011001]
[1767491073523,1e-08,91047.0,91044.0,0.011001]
[1767491076441,1e-08,91050.0,91044.0,0.011001]
[1767491076844,0.01098298,91050.0,91044.0,0.011001]
[1767491077025,1e-08,91050.0,91044.0,0.011001]
[1767491080796,1e-08,91050.0,91045.0,0.05491742]
[1767491080918,1e-08,91050.0,91047.0,0.01098333]
[1767491081623,0.02351603,91058.0,91051.0,0.01098285]
[1767491081826,0.01098177,91060.0,91052.0,0.022]
[1767491082778,0.01098189,91059.0,91052.0,0.022]
[1767491083018,0.01089385,91059.0,91052.0,0.022]
[1767491083222,0.02351603,91060.0,91052.0,0.022]
[1767491083354,0.01098177,91060.0,91052.0,0.022]
[1767491083544,0.07282727,91062.0,91052.0,0.022]
[1767491083545,0.01098164,91061.0,91052.0,0.022]
[1767491083802,0.03449755,91062.0,91052.0,0.022]
[1767491084199,0.01098177,91060.0,91052.0,0.022]
[1767491084374,0.01098164,91061.0,91052.0,0.022]
[1767491084695,0.02351603,91062.0,91052.0,0.022]
[1767491084896,0.01098128,91064.0,91052.0,0.022]
[1767491085229,0.0109814,91063.0,91053.0,0.01098261]
[1767491085363,0.03445016,91064.0,91054.0,0.01098249]
[1767491085565,0.01098128,91064.0,91055.0,0.01098237]
[1767491085764,0.000633,91055.0,91054.0,0.28707165]
[1767491085971,0.010633,91055.0,91052.0,0.022]
[1767491086289,0.01098164,91061.0,91052.0,0.022]
[1767491087537,0.06029301,91060.0,91052.0,0.022]
[1767491087765,0.04931124,91060.0,91052.0,0.022]
[1767491088263,0.045841,91060.0,91052.0,0.022]
[1767491088859,0.045841,91060.0,91052.0,0.03298273]
[1767491089070,0.045841,91060.0,91054.0,0.01098249]
[1767491089229,0.0109814,91063.0,91052.0,0.022]
[1767491089430,0.01098152,91062.0,91052.0,0.03298273]
[1767491089874,0.06029264,91063.0,91053.0,0.01098261]
[1767491090081,0.01098152,91062.0,91052.0,0.03298273]
[1767491090275,0.06029264,91063.0,91053.0,0.01098261]
[1767491090481,0.06029264,91063.0,91052.0,0.03298273]
[1767491090703,0.0603677,91063.0,91052.0,0.03298273]
[1767491091061,0.04931124,91060.0,91052.0,0.022]
[1767491091234,0.04931124,91060.0,91052.0,0.03298273]
[1767491091437,0.04931124,91060.0,91052.0,0.022]
[1767491091886,0.04931124,91060.0,91052.0,0.03298273]
[1767491092185,0.04931124,91060.0,91052.0,0.021367]
[1767491092383,0.04931124,91060.0,91052.0,0.03234973]
[1767491093022,0.04922315,91060.0,91053.0,0.01098261]
[1767491093216,0.04922315,91060.0,91052.0,0.03234973]
[1767491093217,0.04922315,91060.0,91052.0,0.021367]
[1767491093927,0.04922315,91060.0,91052.0,0.03234973]
[1767491094152,0.04922315,91060.0,91052.0,0.03230973]
[1767491094570,0.04922315,91060.0,91052.0,0.021327]
[1767491094771,0.04922315,91060.0,91052.0,0.03230973]
[1767491095288,0.04922315,91060.0,91052.0,0.021327]
[1767491096511,0.06020492,91060.0,91052.0,0.021327]
[1767491096982,0.04922315,91060.0,91052.0,0.021327]
[1767491097466,0.02355601,91059.0,91052.0,0.021327]
[1767491097992,0.02355601,91059.0,91052.0,0.03230973]
[1767491097993,0.02255701,91059.0,91052.0,0.03230973]
[1767491098194,0.04922315,91060.0,91052.0,0.021327]
[1767491098558,0.01105646,91063.0,91052.0,0.03230973]
[1767491098742,0.01098164,91061.0,91052.0,0.021327]
[1767491098941,0.06029301,91060.0,91052.0,0.021327]
[1767491099194,0.04931124,91060.0,91052.0,0.021327]
[1767491099873,0.04931124,91060.0,91052.0,0.03230973]
[1767491100075,0.04931124,91060.0,91053.0,0.01098261]
[1767491100275,0.04931124,91060.0,91052.0,0.03230973]
[1767491101297,0.04931124,91060.0,91052.0,0.021327]
[1767491101512,0.04578491,91051.0,91046.0,0.05491682]
[1767491101714,7.506e-05,91063.0,91055.0,0.01098237]
[1767491101860,7.506e-05,91063.0,91056.0,0.022]
[1767491102228,7.506e-05,91063.0,91062.0,0.05490764]
[1767491102352,0.000999,91062.0,91060.0,0.01098177]
[1767491102543,7.506e-05,91063.0,91060.0,0.01098177]
[1767491104581,0.00573114,91071.0,91065.0,0.000152]
[1767491104805,0.00573114,91071.0,91063.0,0.00015006]